fUSD/lending_fUSD_20240118
["ID","MTS","AMOUNT","RATE_DAILY","PERIOD"]
[312003806,1705541441902,-500.0,0.0002219,2]
[312003807,1705541441912,-500.0,0.0002219,2]
[312003809,1705541441921,-592.47,0.0002219,2]
[312003812,1705541441930,-500.0,0.0002219,2]
[312003814,1705541441939,-559.13864927,0.0002219,2]
[312003815,1705541441948,-500.0,0.0002219,2]
[312003817,1705541441957,-351.70623296,0.0002219,2]
[312003819,1705541441967,-500.0,0.0002219,2]
[312003821,1705541441976,-500.0,0.0002219,2]
[312003824,1705541441985,-500.0,0.0002219,2]
[312003825,1705541441995,-500.0,0.0002219,2]
[312003827,1705541442004,-500.0,0.0002219,2]
[312003829,1705541442013,-500.0,0.0002219,2]
[312003830,1705541442022,-500.0,0.0002219,2]
[312003831,1705541442031,-500.0,0.0002219,2]
[312003832,1705541442039,-404.2,0.0002219,2]
[312003833,1705541442048,-500.0,0.0002219,2]
[312003834,1705541442057,-500.0,0.0002219,2]
[312003835,1705541442065,-500.0,0.0002219,2]
[312003836,1705541442074,-500.0,0.0002219,2]
[312003837,1705541442084,-500.0,0.0002219,2]
[312003839,1705541442093,-500.0,0.0002219,2]
[312003841,1705541442103,-500.0,0.0002219,2]
[312003843,1705541442112,-519.36,0.0002219,2]
[312003845,1705541442121,-601.93,0.0002219,2]
[312003847,1705541442130,-500.0,0.0002219,2]
[312003849,1705541442139,-500.0,0.0002219,2]
[312003851,1705541442148,-500.0,0.0002219,2]
[312003853,1705541442157,-500.0,0.0002219,2]
[312003855,1705541442166,-500.0,0.0002219,2]
[312003857,1705541442175,-514.49313759,0.0002219,2]
[312003859,1705541442185,-500.0,0.0002219,2]
[312003861,1705541442193,-500.0,0.0002219,2]
[312003863,1705541442203,-500.0,0.0002219,2]
[312003865,1705541442212,-500.0,0.0002219,2]
[312003867,1705541442221,-500.0,0.0002219,2]
[312003869,1705541442230,-500.0,0.0002219,2]
[312003871,1705541442239,-500.0,0.0002219,2]
[312003873,1705541442247,-500.0,0.0002219,2]
[312003875,1705541442256,-500.0,0.0002219,2]
[312003877,1705541442265,-500.0,0.0002219,2]
[312003879,1705541442273,-500.0,0.0002219,2]
[312003880,1705541442282,-500.0,0.0002219,2]
[312003883,1705541442292,-500.0,0.0002219,2]
[312003884,1705541442302,-500.0,0.0002219,2]
[312003886,1705541442311,-500.0,0.0002219,2]
[312003888,1705541442320,-500.0,0.0002219,2]
[312003890,1705541442331,-504.68360203,0.0002219,2]
[312003892,1705541442340,-500.0,0.0002219,2]
[312003894,1705541442348,-500.0,0.0002219,2]
[312003897,1705541442358,-500.0,0.0002219,2]
[312003899,1705541442368,-500.0,0.0002219,2]
[312003901,1705541442377,-500.0,0.0002219,2]
[312003902,1705541442387,-500.0,0.0002219,2]
[312003905,1705541442397,-500.0,0.0002219,2]
[312003906,1705541442406,-500.0,0.0002219,2]
[312003908,1705541442417,-500.0,0.0002219,2]
[312003910,1705541442427,-624.38927293,0.0002219,2]
[312003913,1705541442436,-500.0,0.0002219,2]
[312003915,1705541442446,-500.0,0.0002219,2]
[312003917,1705541442455,-500.0,0.0002219,2]
[312003919,1705541442464,-649.0,0.0002219,2]
[312003920,1705541442474,-500.0,0.0002219,2]
[312003922,1705541442483,-584.87098994,0.0002219,2]
[312003924,1705541442494,-500.0,0.0002219,2]
[312003927,1705541442504,-500.0,0.0002219,2]
[312003928,1705541442515,-500.0,0.0002219,2]
[312003930,1705541442524,-500.0,0.0002219,2]
[312003932,1705541442533,-500.0,0.0002219,2]
[312003935,1705541442542,-541.66,0.0002219,2]
[312003936,1705541442552,-597.08,0.0002219,2]
[312003938,1705541442561,-500.0,0.0002219,2]
[312003940,1705541442570,-500.0,0.0002219,2]
[312003942,1705541442581,-597.57,0.0002219,2]
[312003944,1705541442590,-500.0,0.0002219,2]
[312003946,1705541442599,-500.0,0.0002219,2]
[312003948,1705541442608,-500.0,0.0002219,2]
[312003950,1705541442617,-227.86,0.0002219,2]
[312003953,1705541442627,-500.0,0.0002219,2]
[312003955,1705541442637,-500.0,0.0002219,2]
[312003957,1705541442648,-500.0,0.0002219,2]
[312003959,1705541442662,-500.0,0.0002219,2]
[312003961,1705541442672,-500.0,0.0002219,2]
[312003962,1705541442681,-500.0,0.0002219,2]
[312003964,1705541442692,-500.0,0.0002219,2]
[312003967,1705541442702,-500.0,0.0002219,2]
[312003969,1705541442711,-500.0,0.0002219,2]
[312003970,1705541442720,-569.36,0.0002219,2]
[312003972,1705541442729,-235.06,0.0002219,2]
[312003974,1705541442738,-500.0,0.0002219,2]
[312003976,1705541442748,-500.0,0.0002219,2]
[312003978,1705541442756,-502.20994855,0.0002219,2]
[312003980,1705541442765,-500.0,0.0002219,2]
[312003982,1705541442774,-500.0,0.0002219,2]
[312003984,1705541442783,-500.0,0.0002219,2]
[312003986,1705541442792,-320.14060737,0.0002219,2]
[312003988,1705541442801,-500.0,0.0002219,2]
[312003990,1705541442810,-588.10183598,0.0002219,2]
[312003992,1705541442819,-500.0,0.0002219,2]
[312003994,1705541442828,-500.0,0.0002219,2]
[312003996,1705541442837,-500.0,0.0002219,2]
[312003998,1705541442847,-595.74,0.0002219,2]
[312004000,1705541442856,-354.45833948,0.0002219,2]
[312004002,1705541442865,-500.0,0.0002219,2]
[312004004,1705541442874,-500.0,0.0002219,2]
[312004006,1705541442883,-500.0,0.0002219,2]
[312004008,1705541442892,-500.0,0.0002219,2]
[312004010,1705541442901,-500.0,0.0002219,2]
[312004012,1705541442910,-500.0,0.0002219,2]
[312004014,1705541442919,-500.0,0.0002219,2]
[312004016,1705541442928,-238.21,0.0002219,2]
[312004018,1705541442938,-500.0,0.0002219,2]
[312004020,1705541442947,-500.0,0.0002219,2]
[312004022,1705541442956,-548.74929744,0.0002219,2]
[312004024,1705541442966,-500.0,0.0002219,2]
[312004026,1705541442975,-500.0,0.0002219,2]
[312004028,1705541442984,-500.0,0.0002219,2]
[312004030,1705541442994,-500.0,0.0002219,2]
[312004032,1705541443003,-500.0,0.0002219,2]
[312004034,1705541443012,-571.77372095,0.0002219,2]
[312004036,1705541443022,-500.0,0.0002219,2]
[312004038,1705541443031,-649.15,0.0002219,2]
[312004040,1705541443040,-500.0,0.0002219,2]
[312004042,1705541443050,-580.01,0.0002219,2]
[312004044,1705541443059,-500.0,0.0002219,2]
[312004046,1705541443067,-500.0,0.0002219,2]
[312004048,1705541443076,-500.0,0.0002219,2]
[312004050,1705541443085,-500.0,0.0002219,2]
[312004052,1705541443094,-500.0,0.0002219,2]
[312004054,1705541443103,-500.0,0.0002219,2]
[312004056,1705541443113,-500.0,0.0002219,2]
[312004058,1705541443122,-500.0,0.0002219,2]
[312004060,1705541443130,-520.1,0.0002219,2]
[312004062,1705541443140,-500.0,0.0002219,2]
[312004064,1705541443149,-500.0,0.0002219,2]
[312004066,1705541443158,-521.34590528,0.0002219,2]
[312004068,1705541443167,-500.0,0.0002219,2]
[312004070,1705541443176,-500.0,0.0002219,2]
[312004073,1705541443186,-517.84015485,0.0002219,2]
[312004075,1705541443195,-500.0,0.0002219,2]
[312004076,1705541443206,-500.0,0.0002219,2]
[312004078,1705541443215,-500.0,0.0002219,2]
[312004081,1705541443225,-500.0,0.0002219,2]
[312004082,1705541443234,-500.0,0.0002219,2]
[312004084,1705541443245,-500.0,0.0002219,2]
[312004087,1705541443255,-500.0,0.0002219,2]
[312004088,1705541443264,-500.0,0.0002219,2]
[312004090,1705541443273,-500.0,0.0002219,2]
[312004093,1705541443283,-500.0,0.0002219,2]
[312004094,1705541443294,-500.0,0.0002219,2]
[312004097,1705541443304,-500.0,0.0002219,2]
[312004099,1705541443314,-500.0,0.0002219,2]
[312004100,1705541443324,-377.82476664,0.0002219,2]
[312004102,1705541443334,-515.03852772,0.0002219,2]
[312004104,1705541443343,-500.0,0.0002219,2]
[312004106,1705541443353,-383.81347406,0.0002219,2]
[312004109,1705541443362,-500.0,0.0002219,2]
[312004111,1705541443371,-500.0,0.0002219,2]
[312004112,1705541443380,-500.0,0.0002219,2]
[312004115,1705541443390,-500.0,0.0002219,2]
[312004117,1705541443399,-506.84878708,0.0002219,2]
[312004118,1705541443408,-500.0,0.0002219,2]
[312004121,1705541443418,-500.0,0.0002219,2]
[312004123,1705541443427,-500.0,0.0002219,2]
[312004125,1705541443441,-500.0,0.0002219,2]
[312004127,1705541443451,-500.0,0.0002219,2]
[312004129,1705541443460,-500.0,0.0002219,2]
[312004131,1705541443470,-500.0,0.0002219,2]
[312004133,1705541443480,-641.85,0.0002219,2]
[312004135,1705541443489,-159.63220399,0.0002219,2]
[312004137,1705541443498,-500.0,0.0002219,2]
[312004138,1705541443507,-500.0,0.0002219,2]
[312004140,1705541443516,-500.0,0.0002219,2]
[312004142,1705541443525,-500.0,0.0002219,2]
[312004144,1705541443534,-500.0,0.0002219,2]
[312004146,1705541443544,-500.0,0.0002219,2]
[312004148,1705541443553,-519.47,0.0002219,2]
[312004150,1705541443563,-500.0,0.0002219,2]
[312004152,1705541443572,-500.0,0.0002219,2]
[312004154,1705541443582,-599.9,0.0002219,2]
[312004156,1705541443591,-507.1734896,0.0002219,2]
[312004158,1705541443601,-500.0,0.0002219,2]
[312004160,1705541443610,-500.0,0.0002219,2]
[312004162,1705541443619,-534.43,0.0002219,2]
[312004163,1705541443628,-500.0,0.0002219,2]
[312004165,1705541443639,-500.0,0.0002219,2]
[312004168,1705541443649,-500.0,0.0002219,2]
[312004169,1705541443662,-500.0,0.0002219,2]
[312004171,1705541443671,-500.0,0.0002219,2]
[312004173,1705541443681,-500.0,0.0002219,2]
[312004175,1705541443691,-503.03597033,0.0002219,2]
[312004177,1705541443701,-500.0,0.0002219,2]
[312004179,1705541443710,-500.0,0.0002219,2]
[312004181,1705541443720,-500.0,0.0002219,2]
[312004183,1705541443730,-601.33655596,0.0002219,2]
[312004185,1705541443740,-500.0,0.0002219,2]
[312004187,1705541443750,-500.0,0.0002219,2]
[312004189,1705541443760,-500.0,0.0002219,2]
[312004191,1705541443769,-500.0,0.0002219,2]
[312004192,1705541443778,-525.53,0.0002219,2]
[312004193,1705541443787,-500.0,0.0002219,2]
[312004194,1705541443797,-400.0,0.0002219,2]
[312004195,1705541443806,-500.0,0.0002219,2]
[312004196,1705541443815,-500.0,0.0002219,2]
[312004197,1705541443824,-550.98,0.0002219,2]
[312004198,1705541443835,-637.4,0.0002219,2]
[312004199,1705541443844,-500.0,0.0002219,2]
[312004200,1705541443853,-500.0,0.0002219,2]
[312004201,1705541443862,-500.0,0.0002219,2]
[312004202,1705541443871,-500.0,0.0002219,2]
[312004203,1705541443881,-500.0,0.0002219,2]
[312004204,1705541443890,-500.0,0.0002219,2]
[312004205,1705541443899,-500.0,0.0002219,2]
[312004206,1705541443908,-500.0,0.0002219,2]
[312004207,1705541443918,-503.89370048,0.0002219,2]
[312004208,1705541443927,-166.26670033,0.0002219,2]
[312004209,1705541443936,-500.0,0.0002219,2]
[312004210,1705541443945,-338.29664719,0.0002219,2]
[312004211,1705541443958,-503.6366536,0.0002219,2]
[312004212,1705541443967,-500.0,0.0002219,2]
[312004213,1705541443976,-500.0,0.0002219,2]
[312004214,1705541443987,-500.0,0.0002219,2]
[312004216,1705541443997,-500.0,0.0002219,2]
[312004217,1705541444006,-500.0,0.0002219,2]
[312004218,1705541444015,-500.0,0.0002219,2]
[312004219,1705541444026,-500.0,0.0002219,2]
[312004220,1705541444035,-500.0,0.0002219,2]
[312004221,1705541444045,-500.0,0.0002219,2]
[312004222,1705541444056,-306.60035163,0.0002219,2]
[312004223,1705541444065,-503.78657047,0.0002219,2]
[312004224,1705541444075,-500.0,0.0002219,2]
[312004225,1705541444086,-500.0,0.0002219,2]
[312004226,1705541444096,-1000.0,0.0002219,2]
[312004227,1705541444107,-500.0,0.0002219,2]
[312004228,1705541444117,-500.0,0.0002219,2]
[312004229,1705541444128,-500.0,0.0002219,2]
[312004230,1705541444138,-517.64183195,0.0002219,2]
[312004231,1705541444148,-500.0,0.0002219,2]
[312004232,1705541444158,-500.0,0.0002219,2]
[312004233,1705541444168,-422.4678848,0.0002219,2]
[312004234,1705541444177,-500.0,0.0002219,2]
[312004235,1705541444187,-500.0,0.0002219,2]
[312004236,1705541444197,-500.0,0.0002219,2]
[312004237,1705541444207,-500.0,0.0002219,2]
[312004238,1705541444216,-500.0,0.0002219,2]
[312004239,1705541444226,-512.99156572,0.0002219,2]
[312004240,1705541444235,-500.0,0.0002219,2]
[312004241,1705541444245,-500.0,0.0002219,2]
[312004242,1705541444255,-557.98,0.0002219,2]
[312004243,1705541444264,-500.0,0.0002219,2]
[312004244,1705541444274,-500.0,0.0002219,2]
[312004245,1705541444285,-500.0,0.0002219,2]
[312004246,1705541444299,-500.0,0.0002219,2]
[312004247,1705541444308,-530.11652516,0.0002219,2]
[312004248,1705541444318,-500.0,0.0002219,2]
[312004249,1705541444328,-500.0,0.0002219,2]
[312004250,1705541444338,-527.25134917,0.0002219,2]
[312004252,1705541444348,-505.81920632,0.0002219,2]
[312004253,1705541444358,-524.38471533,0.0002219,2]
[312004254,1705541444368,-510.93763316,0.0002219,2]
[312004255,1705541444377,-507.07808165,0.0002219,2]
[312004256,1705541444387,-581.46,0.00022191,2]
[312004257,1705541444398,-500.0,0.00022191,2]
[312004258,1705541444407,-500.0,0.00022191,2]
[312004259,1705541444417,-500.0,0.00022191,2]
[312004260,1705541444426,-500.0,0.00022191,2]
[312004261,1705541444435,-500.0,0.00022191,2]
[312004262,1705541444445,-500.0,0.00022191,2]
[312004263,1705541444454,-236.32,0.00022191,2]
[312004264,1705541444464,-500.0,0.00022191,2]
[312004265,1705541444473,-500.0,0.00022191,2]
[312004266,1705541444483,-500.0,0.00022191,2]
[312004269,1705541444493,-500.0,0.00022191,2]
[312004271,1705541444504,-500.0,0.00022191,2]
[312004273,1705541444515,-580.59,0.00022191,2]
[312004275,1705541444525,-500.0,0.00022191,2]
[312004277,1705541444535,-500.0,0.00022191,2]
[312004279,1705541444545,-673.72,0.00022191,2]
[312004281,1705541444554,-3043.7,0.00022191,2]
[312004283,1705541444564,-500.0,0.00022191,2]
[312004285,1705541444573,-716.69,0.00022191,2]
[312004287,1705541444583,-1449.57,0.00022191,2]
[312004289,1705541444593,-500.0,0.00022191,2]
[312004291,1705541444602,-500.0,0.00022191,2]
[312004292,1705541444611,-500.0,0.00022191,2]
[312004294,1705541444621,-500.0,0.00022191,2]
[312004296,1705541444630,-524.87,0.00022191,2]
[312004298,1705541444639,-500.0,0.00022191,2]
[312004300,1705541444649,-1266.32,0.00022191,2]
[312004302,1705541444663,-500.0,0.00022191,2]
[312004304,1705541444673,-7360.22,0.00022191,2]
[312004306,1705541444683,-500.0,0.00022191,2]
[312004308,1705541444693,-500.0,0.00022191,2]
[312004310,1705541444703,-598.03,0.00022191,2]
[312004312,1705541444712,-500.0,0.00022191,2]
[312004314,1705541444722,-500.0,0.00022191,2]
[312004334,1705541444970,-500.0,0.00022191,2]
[312004335,1705541445013,-966.79,0.00022191,2]
[312004336,1705541445023,-578.36,0.00022191,2]
[312004337,1705541445033,-500.0,0.00022191,2]
[312004338,1705541445042,-1357.07,0.00022191,2]
[312004339,1705541445052,-500.0,0.00022191,2]
[312004340,1705541445061,-500.0,0.00022191,2]
[312004341,1705541445071,-500.0,0.00022191,2]
[312004342,1705541445081,-500.0,0.00022191,2]
[312004343,1705541445092,-771.11,0.00022191,2]
[312004344,1705541445101,-500.0,0.00022191,2]
[312004345,1705541445111,-500.0,0.00022191,2]
[312004347,1705541445120,-2573.14,0.00022191,2]
[312004348,1705541445130,-1296.91,0.00022191,5]
[312004349,1705541445139,-500.0,0.00022191,2]
[312004350,1705541445148,-500.0,0.00022191,2]
[312004352,1705541445158,-279.81490168,0.00022191,2]
[312004353,1705541445167,-500.0,0.00022191,2]
[312004354,1705541445176,-500.0,0.00022191,2]
[312004355,1705541445185,-500.0,0.00022191,2]
[312004357,1705541445194,-1049.49,0.00022211,2]
[312004358,1705541445203,-214.85634259,0.00022228,2]
[312004359,1705541445213,-312.31937465,0.00022256,2]
[312004361,1705541445222,-712.18,0.00022256,2]
[312004362,1705541445232,-500.0,0.00022257,2]
[312004363,1705541445241,-500.0,0.00022257,2]
[312004364,1705541445250,-500.0,0.00022257,2]
[312004366,1705541445260,-500.0,0.00022257,2]
[312004367,1705541445269,-261.54818147,0.00022257,2]
[312004368,1705541445279,-500.0,0.00022257,2]
[312004369,1705541445289,-500.0,0.00022257,2]
[312004370,1705541445299,-500.0,0.00022257,2]
[312004371,1705541445309,-500.0,0.00022257,2]
[312004373,1705541445319,-500.0,0.00022257,2]
[312004375,1705541445330,-500.0,0.00022257,2]
[312004377,1705541445339,-298.24051378,0.00022257,2]
[312004378,1705541445348,-500.0,0.00022257,2]
[312004379,1705541445357,-500.0,0.00022257,2]
[312004380,1705541445366,-500.0,0.00022257,2]
[312004381,1705541445376,-500.0,0.00022257,2]
[312004382,1705541445386,-500.0,0.00022257,2]
[312004383,1705541445395,-500.0,0.00022257,2]
[312004384,1705541445404,-500.0,0.00022257,2]
[312004385,1705541445414,-500.0,0.00022257,2]
[312004387,1705541445423,-500.0,0.00022257,2]
[312004389,1705541445432,-500.0,0.00022257,2]
[312004391,1705541445443,-500.0,0.00022257,2]
[312004393,1705541445453,-500.0,0.00022257,2]
[312004395,1705541445462,-500.0,0.00022257,2]
[312004397,1705541445473,-463.16606833,0.00022289,2]
[312004399,1705541445482,-712.18,0.00022331,2]
[312004401,1705541445491,-245000.0,0.00022332,2]
[312004403,1705541445502,-214.85634259,0.00022365,2]
[312004405,1705541445511,-159.59,0.00022381,2]
[312004407,1705541445522,-250.0,0.000224,2]
[312004409,1705541445531,-463.16606833,0.00022411,2]
[312004411,1705541445540,-350.47,0.00022428,2]
[312004413,1705541445551,-3951.25,0.00022429,2]
[312004415,1705541445561,-4191.75,0.00022429,2]
[312004417,1705541445571,-548.82,0.00022429,2]
[312004419,1705541445580,-500.0,0.00022429,2]
[312004421,1705541445589,-1550.01,0.00022429,2]
[312004424,1705541445599,-500.0,0.00022429,2]
[312004426,1705541445608,-1116.06,0.00022429,2]
[312004429,1705541445618,-9181.47,0.00022429,2]
[312004432,1705541445626,-569.22,0.00022429,2]
[312004435,1705541445636,-522.33,0.00022429,2]
[312004438,1705541445645,-500.0,0.00022429,2]
[312004442,1705541445657,-2482.27,0.00022429,2]
[312004444,1705541445667,-500.0,0.00022429,2]
[312004448,1705541445676,-500.0,0.00022429,2]
[312004450,1705541445686,-500.0,0.00022429,2]
[312004453,1705541445695,-500.0,0.00022429,2]
[312004456,1705541445705,-574.76,0.00022429,2]
[312004459,1705541445714,-500.0,0.00022429,2]
[312004461,1705541445723,-500.0,0.00022429,2]
[312004463,1705541445734,-754.69,0.00022429,2]
[312004465,1705541445744,-500.0,0.00022429,2]
[312004467,1705541445754,-2112.93,0.00022429,2]
[312004469,1705541445764,-4720.32,0.00022429,2]
[312004471,1705541445774,-819.29,0.00022429,2]
[312004473,1705541445784,-500.0,0.00022429,2]
[312004475,1705541445794,-500.0,0.00022429,2]
[312004477,1705541445804,-927.11,0.00022429,2]
[312004479,1705541445814,-1190.09,0.00022429,2]
[312004481,1705541445824,-500.0,0.00022429,2]
[312004484,1705541445834,-500.0,0.00022429,2]
[312004486,1705541445845,-1597.83,0.00022429,2]
[312004488,1705541445854,-2011.6,0.00022429,2]
[312004490,1705541445865,-1048.47,0.00022429,2]
[312004492,1705541445874,-1398.62,0.00022429,2]
[312004494,1705541445884,-1671.69,0.00022429,2]
[312004495,1705541445893,-2477.58,0.00022429,2]
[312004497,1705541445903,-1506.55,0.00022429,2]
[312004499,1705541445913,-974.71,0.00022429,2]
[312004501,1705541445922,-500.0,0.00022429,2]
[312004503,1705541445931,-500.0,0.00022429,2]
[312004504,1705541445940,-2126.6,0.00022429,2]
[312004505,1705541445949,-500.0,0.00022429,2]
[312004506,1705541445959,-500.0,0.0002243,2]
[312004507,1705541445968,-500.0,0.0002243,2]
[312004508,1705541445977,-500.0,0.0002243,2]
[312004509,1705541445987,-500.0,0.0002243,2]
[312004510,1705541445996,-500.0,0.0002243,2]
[312004511,1705541446005,-500.0,0.0002243,2]
[312004512,1705541446014,-638.18,0.0002243,2]
[312004513,1705541446023,-569.73,0.0002243,2]
[312004514,1705541446033,-500.0,0.0002243,2]
[312004515,1705541446042,-585.6,0.0002243,2]
[312004516,1705541446051,-410.72,0.0002243,2]
[312004517,1705541446061,-500.0,0.0002243,2]
[312004518,1705541446069,-500.0,0.0002243,2]
[312004519,1705541446080,-500.0,0.0002243,2]
[312004520,1705541446090,-500.0,0.0002243,2]
[312004522,1705541446099,-500.0,0.0002243,2]
[312004523,1705541446108,-500.0,0.0002243,2]
[312004524,1705541446118,-500.0,0.0002243,2]
[312004526,1705541446127,-450.89,0.0002243,2]
[312004527,1705541446136,-478.18,0.0002243,2]
[312004528,1705541446145,-500.0,0.0002243,2]
[312004529,1705541446155,-443.49,0.0002243,2]
[312004530,1705541446164,-500.0,0.0002243,2]
[312004531,1705541446173,-233.64113019,0.0002243,7]
[312004532,1705541446182,-500.0,0.0002243,2]
[312004533,1705541446192,-500.0,0.0002243,2]
[312004534,1705541446201,-500.0,0.0002243,2]
[312004535,1705541446210,-500.0,0.0002243,2]
[312004536,1705541446219,-500.0,0.0002243,2]
[312004537,1705541446229,-500.0,0.0002243,2]
[312004538,1705541446238,-500.0,0.0002243,2]
[312004539,1705541446247,-500.0,0.0002243,2]
[312004540,1705541446256,-500.0,0.0002243,2]
[312004541,1705541446265,-500.0,0.0002243,2]
[312004542,1705541446274,-500.0,0.0002243,2]
[312004543,1705541446284,-500.0,0.0002243,2]
[312004544,1705541446293,-500.0,0.0002243,2]
[312004545,1705541446302,-500.0,0.0002243,2]
[312004546,1705541446310,-500.0,0.0002243,2]
[312004547,1705541446318,-500.0,0.0002243,2]
[312004548,1705541446326,-500.0,0.0002243,2]
[312004549,1705541446336,-500.0,0.0002243,2]
[312004550,1705541446345,-150.0,0.0002243,2]
[312004551,1705541446354,-500.0,0.0002243,2]
[312004552,1705541446364,-500.0,0.0002243,2]
[312004553,1705541446373,-500.0,0.0002243,2]
[312004554,1705541446382,-500.0,0.0002243,2]
[312004555,1705541446391,-500.0,0.0002243,2]
[312004556,1705541446401,-500.0,0.0002243,2]
[312004557,1705541446410,-500.0,0.0002243,2]
[312004558,1705541446420,-500.0,0.0002243,2]
[312004559,1705541446429,-490.72,0.0002243,2]
[312004560,1705541446438,-500.0,0.0002243,2]
[312004561,1705541446447,-500.0,0.0002243,2]
[312004562,1705541446456,-512.08,0.0002243,2]
[312004563,1705541446465,-500.0,0.0002243,2]
[312004564,1705541446475,-373.09,0.0002243,2]
[312004565,1705541446485,-500.0,0.0002243,2]
[312004566,1705541446494,-500.0,0.0002243,2]
[312004567,1705541446504,-500.0,0.0002243,2]
[312004568,1705541446513,-500.0,0.0002243,2]
[312004569,1705541446522,-514.36,0.0002243,2]
[312004570,1705541446532,-500.0,0.0002243,2]
[312004571,1705541446541,-208.59,0.0002243,2]
[312004572,1705541446550,-1622.24,0.0002243,2]
[312004573,1705541446559,-500.0,0.0002243,2]
[312004574,1705541446569,-500.0,0.0002243,2]
[312004575,1705541446578,-539.35,0.0002243,2]
[312004576,1705541446588,-500.0,0.0002243,2]
[312004577,1705541446598,-500.0,0.0002243,2]
[312004578,1705541446607,-368.48,0.0002243,2]
[312004579,1705541446616,-500.0,0.0002243,2]
[312004580,1705541446625,-500.0,0.0002243,2]
[312004581,1705541446635,-874.61,0.0002243,2]
[312004582,1705541446644,-500.0,0.0002243,2]
[312004583,1705541446655,-500.0,0.0002243,2]
[312004584,1705541446666,-500.0,0.0002243,2]
[312004585,1705541446675,-500.0,0.0002243,2]
[312004586,1705541446685,-500.0,0.0002243,2]
[312004587,1705541446694,-500.0,0.0002243,2]
[312004588,1705541446703,-1430.67,0.0002243,2]
[312004589,1705541446713,-500.0,0.0002243,2]
[312004590,1705541446722,-500.0,0.0002243,2]
[312004591,1705541446732,-534.39,0.0002243,2]
[312004592,1705541446741,-500.0,0.0002243,2]
[312004593,1705541446750,-1006.85,0.0002243,2]
[312004594,1705541446760,-249.56,0.0002243,2]
[312004595,1705541446769,-500.0,0.0002243,2]
[312004596,1705541446778,-500.0,0.0002243,2]
[312004597,1705541446788,-500.0,0.0002243,2]
[312004598,1705541446797,-500.0,0.0002243,2]
[312004599,1705541446806,-500.0,0.0002243,2]
[312004600,1705541446816,-500.0,0.0002243,2]
[312004601,1705541446825,-505.59,0.0002243,2]
[312004602,1705541446837,-863.88,0.0002243,2]
[312004603,1705541446846,-500.0,0.0002243,2]
[312004604,1705541446856,-1413.73,0.0002243,2]
[312004605,1705541446865,-500.0,0.0002243,2]
[312004606,1705541446875,-1582.25,0.0002243,2]
[312004607,1705541446884,-500.0,0.0002243,2]
[312004608,1705541446893,-1940.96,0.0002243,2]
[312004609,1705541446902,-500.0,0.0002243,2]
[312004610,1705541446912,-500.0,0.0002243,2]
[312004611,1705541446921,-642.73,0.0002243,2]
[312004612,1705541446931,-500.0,0.0002243,2]